fUSD/lending_fUSD_20260407
["ID","MTS","AMOUNT","RATE_DAILY","PERIOD"]
[419952290,1775542243942,-1568.75908322,9.986e-05,2]
[419952291,1775542243952,-578.20924308,0.00010009,2]
[419952292,1775542243963,-500.0,0.00010009,2]
[419952293,1775542243974,-7261.11582816,0.00010009,2]
[419952294,1775542243984,-224.46418221,0.00010009,2]
[419952295,1775542243995,-208.70663387,0.00010009,2]
[419952296,1775542244006,-174.61919141,0.00010009,2]
[419952297,1775542244016,-151.0,0.00010009,2]
[419952298,1775542244028,-203.89209796,0.00010009,2]
[419952299,1775542244039,-599.60298507,0.00010009,2]
[419952300,1775542244050,-500.0,0.00010064,2]
[419952301,1775542244060,-151.0,0.00010064,2]
[419952302,1775542244071,-1000.0,0.00010109,2]
[419952303,1775542244081,-500.0,0.00010119,2]
[419952304,1775542244092,-151.0,0.00010119,2]
[419952305,1775542244103,-500.0,0.00010174,2]
[419952306,1775542244114,-156.23729959,0.00010174,2]
[419952307,1775542244125,-519.56662094,0.00010229,2]
[419952308,1775542244135,-350.0,0.00010268,2]
[419952309,1775542244145,-623.58710448,0.00010314,2]
[419952310,1775542244156,-200.0,0.00010314,2]
[419952311,1775542244166,-1235.18214925,0.00010314,2]
[419952312,1775542244176,-743.50770149,0.00010314,2]
[419952313,1775542244186,-500.0,0.00010319,2]
[419952314,1775542244196,-157079.46628711,0.0001032,2]
[419952315,1775542244210,-162439.08933269,0.0001032,2]
[419952317,1775542244220,-108075.5587598,0.0001032,2]
[419952318,1775542244230,-19716.6557844,0.0001032,2]
[419952319,1775542244241,-350.0,0.00010409,2]
[419952320,1775542244251,-151.0,0.00010409,2]
[419952322,1775542244262,-151.0,0.00010409,2]
[419952325,1775542244272,-151.0,0.00010409,2]
[419952327,1775542244282,-151.0,0.00010409,2]
[419952329,1775542244293,-500.0,0.00010409,2]
[419952331,1775542244303,-157.0,0.0001041,2]
[419952334,1775542244314,-1000.0,0.00010415,2]
[419952336,1775542244324,-1003.7596237,0.00010415,2]
[419952338,1775542244335,-420.0,0.00010427,2]
[419952340,1775542244345,-255.0,0.00010427,2]
[419952341,1775542244356,-420.0,0.00010427,2]
[419952342,1775542244367,-1680.0,0.00010427,2]
[419952343,1775542244377,-9999.99,0.00010475,2]
[419952344,1775542244388,-1144.44457063,0.00010498,2]
[419952345,1775542244398,-462.27112601,0.00010524,2]
[419952346,1775542244407,-181.08010149,0.00010557,2]
[419952347,1775542244418,-740.22761477,0.00010557,2]
[419952348,1775542244427,-160.68,0.00010567,2]
[419952349,1775542244438,-196.01026906,0.00010593,2]
[419952350,1775542244448,-643.91090388,0.000106,2]
[419952351,1775542244458,-197.8074249,0.000106,2]
[419952352,1775542244468,-3613.0,0.00010613,5]
[419952353,1775542244479,-2000.0,0.00010614,2]
[419952354,1775542244489,-2000.0,0.00010665,2]
[419952355,1775542244499,-1600.0,0.00010665,2]
[419952356,1775542244510,-500.8067595,0.00010673,2]
[419952357,1775542244520,-610.25986344,0.00010673,2]
[419952358,1775542244530,-500.0,0.00010673,2]
[419952359,1775542244540,-500.0,0.00010673,2]
[419952360,1775542244551,-500.0,0.00010673,2]
[419952361,1775542244561,-500.0,0.00010673,2]
[419952362,1775542244571,-500.0,0.00010673,2]
[419952363,1775542244582,-155.385,0.00010699,2]
[419952364,1775542244591,-500.0,0.00010699,2]
[419952365,1775542244601,-425.26891353,0.00010699,2]
[419952366,1775542244611,-500.0,0.00010699,2]
[419952367,1775542244621,-253.50511961,0.00010699,2]
[419952368,1775542244631,-500.0,0.00010699,2]
[419952369,1775542244642,-500.0,0.00010699,2]
[419952370,1775542244652,-500.0,0.00010699,2]
[419952371,1775542244663,-500.0,0.00010699,2]
[419952372,1775542244672,-453.36988494,0.00010699,2]
[419952373,1775542244682,-3589.0,0.000107,5]
[419952374,1775542244692,-3427.0,0.000107,5]
[419952375,1775542244702,-630051.90277094,0.000107,2]
[419952376,1775542244712,-151.0,0.000107,2]
[419952377,1775542244722,-151.0,0.000107,2]
[419952378,1775542244732,-151.0,0.000107,2]
[419952379,1775542244742,-151.0,0.000107,2]
[419952380,1775542244752,-275.860217,0.000107,2]
[419952381,1775542244762,-440.06409,0.000107,2]
[419952382,1775542244772,-275.860217,0.000107,2]
[419952383,1775542244782,-440.06409,0.000107,2]
[419952384,1775542244793,-275.860217,0.000107,2]
[419952385,1775542244803,-275.860217,0.000107,2]
[419952386,1775542244814,-440.06409,0.000107,2]
[419952387,1775542244824,-440.06409,0.000107,2]
[419952388,1775542244835,-474.25,0.00010717,2]
[419952389,1775542244844,-1437.49400658,0.00010743,2]
[419952390,1775542244854,-606.77105689,0.00010759,2]
[419952391,1775542244865,-153.18,0.00010792,2]
[419952392,1775542244875,-2000.0,0.00010814,2]
[419952393,1775542244885,-200.0,0.00010862,2]
[419952394,1775542244895,-1280.88388878,0.00010862,2]
[419952395,1775542244906,-771.01748645,0.00010862,2]
[419952396,1775542244916,-500.0,0.00010899,2]
[419952397,1775542244926,-544.48500215,0.00010899,2]
[419952398,1775542244936,-500.0,0.00010899,2]
[419952399,1775542244947,-500.0,0.00010899,2]
[419952400,1775542244958,-500.0,0.00010899,2]
[419952401,1775542244968,-500.0,0.00010899,2]
[419952402,1775542244978,-500.0,0.00010899,2]
[419952403,1775542244988,-351.45196723,0.00010919,2]
[419952404,1775542244999,-954.09439007,0.00010934,2]
[419952405,1775542245009,-614.26962848,0.00010949,2]
[419952406,1775542245019,-200.0,0.00010959,2]
[419952407,1775542245029,-502.15098025,0.00010959,2]
[419952408,1775542245040,-150.0,0.00010959,2]
[419952409,1775542245050,-150.0,0.00010959,2]
[419952410,1775542245060,-3474.38,0.00010959,2]
[419952411,1775542245071,-1357.21438262,0.00011,2]
[419952412,1775542245082,-2000.0,0.00011014,2]
[419952413,1775542245092,-350.0,0.00011075,2]
[419952414,1775542245102,-8826.88863281,0.00011099,2]
[419952415,1775542245123,-1000.92571844,0.00011099,2]
[419952416,1775542246417,-8256.93446698,0.00011099,2]
[419952417,1775542246785,-11603.533306,0.00011099,2]
[419952418,1775542246840,-2044.48103607,0.00011099,2]
[419952964,1775543431423,-474.41347366,9.411e-05,2]
[419952965,1775543431436,-1025.58652634,9.411e-05,2]
[419952966,1775543431445,-285.0,9.411e-05,2]
[419952967,1775543431454,-1589.6,9.809e-05,2]
[419952968,1775543431464,-300.0,9.908e-05,2]
[419952969,1775543431474,-1200.0,9.908e-05,2]
[419952970,1775543431484,-578.20924308,9.987e-05,2]
[419952971,1775543431494,-500.0,0.0001011,2]
[419952972,1775543431503,-888.45,0.00010221,2]
[419952973,1775543431513,-505.0,0.00010521,2]
[419952974,1775543431523,-153.18,0.00010568,2]
[419952975,1775543431532,-5274.826,0.00010624,2]
[419952976,1775543431542,-200.0,0.00010718,2]
[419952977,1775543431552,-623.58710448,0.00010718,2]
[419952978,1775543431562,-188.77450187,0.00010718,2]
[419952979,1775543431572,-174.61919141,0.00010718,2]
[419952980,1775543431581,-743.50770149,0.00010718,2]
[419952981,1775543431591,-15635.6489471,0.00010724,2]
[419952982,1775543431601,-20254.97151106,0.00010724,2]
[419952983,1775543431614,-315.31506907,0.00010724,2]
[419952984,1775543431626,-1042.34847306,0.00010724,2]
[419952985,1775543431639,-1288.72541951,0.00010724,2]
[419952986,1775543431651,-4437.99994,0.00010724,2]
[419952987,1775543431671,-2021.97763837,0.00010724,2]
[419952988,1775543431683,-1305.38,0.00010724,2]
[419953017,1775543438096,-8618.36609069,0.00010724,2]
[419953020,1775543438115,-702.17729803,0.00010724,2]
[419953022,1775543438126,-603.22941727,0.00010724,2]
[419953025,1775543438150,-367.0,0.00010724,2]
[419953028,1775543438166,-1055.47768478,0.00010724,2]
[419953031,1775543438185,-981.56,0.00010724,2]
[419953033,1775543438196,-4059.95431023,0.00010724,2]
[419953035,1775543438207,-768.9853178,0.00010724,2]
[419953037,1775543438219,-1527.25938326,0.00010724,2]
[419953039,1775543438231,-1967.48231577,0.00010724,2]
[419953042,1775543438242,-2302.59726528,0.00010724,2]
[419953046,1775543438270,-3336.10950854,0.00010724,2]
[419953191,1775543439933,-588.84297081,0.00010724,2]
[419953277,1775543440739,-1093.9249713,0.00010724,2]
[419953474,1775543442600,-9866.04124377,0.00010724,2]
[419953476,1775543442610,-4954.80289277,0.00010724,2]
[419953478,1775543442622,-1018.19425808,0.00010724,2]
[419953480,1775543442634,-4810.27,0.00010724,2]
[419953755,1775543445591,-12388.45313565,0.00010724,2]
[419953756,1775543445601,-1030.18,0.00010785,2]
[419953757,1775543445611,-7032.53,0.00010831,2]
[419953758,1775543445621,-420.0,0.00010899,2]
[419953759,1775543445632,-1680.0,0.00010899,2]
[419953760,1775543445642,-23769.73233067,0.00010942,2]
[419953761,1775543445862,-23992.02371566,0.00010942,2]
[419953762,1775543445872,-200.0,0.0001101,2]
[419953763,1775543445882,-2000.0,0.00011099,2]
[419953764,1775543445891,-756.98,0.00011099,2]
[419953765,1775543445901,-277.07,0.000111,2]
[419953767,1775543445911,-1807.46701593,0.000111,2]
[419953804,1775543561662,1001.17,8.517e-05,2]
[419953805,1775543636300,-291.0,9.808e-05,2]
[419953806,1775543636330,-300.0,9.808e-05,2]
[419953807,1775543636359,-150.0,9.808e-05,2]
[419953808,1775543636387,-300.0,9.808e-05,2]
[419953809,1775543636417,-11304.0,9.809e-05,2]
[419953810,1775543665058,1840.0,0.0001,3]
[419953811,1775543684934,156.29,5.103e-05,2]
[419953812,1775543684976,156.29,6.379e-05,2]
[419953813,1775543685089,156.29,7.655e-05,2]
[419953814,1775543947918,523.36785139,0.0001,3]
[419953815,1775544088665,-156.29,8.931e-05,2]
[419953816,1775544088691,-203.50105094,8.931e-05,2]
[419953817,1775544088716,-150.0,9.808e-05,2]
[419953818,1775544088742,-490.20894906,9.808e-05,2]
[419953819,1775544089799,-709.79105094,9.808e-05,2]
[419953820,1775544089822,-290.20894906,9.809e-05,2]
[419953821,1775544090136,-6.38544768,9.809e-05,2]
[419953822,1775544090162,-993.61455232,9.809e-05,2]
[419953823,1775544090479,-1000.0,9.809e-05,2]
[419953824,1775544090914,-1000.0,9.809e-05,2]
[419953825,1775544091379,-1000.0,9.809e-05,2]
[419953826,1775544091731,-1000.0,9.809e-05,2]
[419953827,1775544092063,-1000.0,9.809e-05,2]
[419953828,1775544092371,-1000.0,9.809e-05,2]
[419953829,1775544093186,-1000.0,9.809e-05,2]
[419953830,1775544093343,-1000.0,9.809e-05,2]
[419953831,1775544093543,-1000.0,9.809e-05,2]
[419953832,1775544093872,-1000.0,9.809e-05,2]
[419953833,1775544094203,-1000.0,9.809e-05,2]
[419953834,1775544096010,-1000.0,9.809e-05,2]
[419953835,1775544096074,-1000.0,9.809e-05,2]
[419953836,1775544096247,-1000.0,9.809e-05,2]
[419953837,1775544096344,-1000.0,9.809e-05,2]
[419953838,1775544096413,-1000.0,9.809e-05,2]
[419953839,1775544096497,-1000.0,9.809e-05,2]
[419953840,1775544100022,-1000.0,9.809e-05,2]
[419953841,1775544100553,-1000.0,9.809e-05,2]
[419953842,1775544100982,-1000.0,9.809e-05,2]
[419953843,1775544101442,-1000.0,9.809e-05,2]
[419953844,1775544101746,-1000.0,9.809e-05,2]
[419953845,1775544102104,-1000.0,9.809e-05,2]
[419953846,1775544102464,-1000.0,9.809e-05,2]
[419953847,1775544102748,-1000.0,9.809e-05,2]
[419953848,1775544103090,-1000.0,9.809e-05,2]
[419953849,1775544103402,-1000.0,9.809e-05,2]
[419953850,1775544103730,-1000.0,9.809e-05,2]
[419953851,1775544104131,-1000.0,9.809e-05,2]
[419953852,1775544104431,-1000.0,9.809e-05,2]
[419953853,1775544104752,-1000.0,9.809e-05,2]
[419953854,1775544105125,-1000.0,9.809e-05,2]
[419953855,1775544105459,-1000.0,9.809e-05,2]
[419953856,1775544105788,-1000.0,9.809e-05,2]
[419953857,1775544107566,-1000.0,9.809e-05,2]
[419953858,1775544107632,-1000.0,9.809e-05,2]
[419953859,1775544107686,-1000.0,9.809e-05,2]
[419953860,1775544107800,-1000.0,9.809e-05,2]
[419953861,1775544107912,-1000.0,9.809e-05,2]
[419953862,1775544107958,-1000.0,9.809e-05,2]
[419953863,1775544108276,-1000.0,9.809e-05,2]
[419953864,1775544111403,-1000.0,9.809e-05,2]
[419953865,1775544111817,-1000.0,9.809e-05,2]
[419953866,1775544112302,-1000.0,9.809e-05,2]
[419953867,1775544112732,-1000.0,9.809e-05,2]
[419953868,1775544113074,-1000.0,9.809e-05,2]
[419953869,1775544113532,-1000.0,9.809e-05,2]
[419953870,1775544113880,-1000.0,9.809e-05,2]
[419953871,1775544115541,-1000.0,9.809e-05,2]
[419953872,1775544115868,-1000.0,9.809e-05,2]
[419953873,1775544116214,-1000.0,9.809e-05,2]
[419953874,1775544116518,-1000.0,9.809e-05,2]
[419953875,1775544116873,-1000.0,9.809e-05,2]
[419953876,1775544120271,-1000.0,9.809e-05,2]
[419953877,1775544120320,-1000.0,9.809e-05,2]
[419953878,1775544120365,-1000.0,9.809e-05,2]
[419953879,1775544120412,-1000.0,9.809e-05,2]
[419953880,1775544120451,-1000.0,9.809e-05,2]
[419953881,1775544125975,-300.0,9.808e-05,2]
[419953882,1775544126000,-150.0,9.808e-05,2]
[419953883,1775544126028,-550.0,9.809e-05,2]
[419953884,1775544127658,-792.15034768,9.809e-05,2]
[419953885,1775544127685,-207.84965232,9.809e-05,2]
[419953886,1775544133170,-846.0,9.809e-05,2]
[419953887,1775544189860,-151.0,9.806e-05,2]
[419953888,1775544189884,-291.0,9.809e-05,2]
[419953889,1775544189910,-558.0,9.809e-05,2]
[419953890,1775544191156,-871.0064,9.709e-05,2]
[419953891,1775544191183,-128.9936,9.809e-05,2]
[419953892,1775544192170,-1000.0,9.809e-05,2]
[419953893,1775544192495,-1000.0,9.809e-05,2]
[419953894,1775544192803,-1000.0,9.809e-05,2]
[419953895,1775544193141,-1000.0,9.809e-05,2]
[419953896,1775544193430,-1000.0,9.809e-05,2]
[419953897,1775544193788,-1000.0,9.809e-05,2]
[419953898,1775544194128,-1000.0,9.809e-05,2]
[419953899,1775544194448,-1000.0,9.809e-05,2]
[419953900,1775544194780,-1000.0,9.809e-05,2]
[419953901,1775544195189,-1000.0,9.809e-05,2]
[419953902,1775544195460,-1000.0,9.809e-05,2]
[419953903,1775544195769,-1000.0,9.809e-05,2]
[419953904,1775544196133,-1000.0,9.809e-05,2]
[419953905,1775544196440,-1000.0,9.809e-05,2]
[419953906,1775544196909,-1000.0,9.809e-05,2]
[419953907,1775544197399,-1000.0,9.809e-05,2]
[419953908,1775544197884,-1000.0,9.809e-05,2]
[419953909,1775544198317,-1000.0,9.809e-05,2]
[419953910,1775544198361,-40565.0,9.809e-05,2]
[419953911,1775544198663,-1000.0,9.809e-05,2]
[419953912,1775544199131,-1000.0,9.809e-05,2]
[419953913,1775544199564,-1000.0,9.809e-05,2]
[419953914,1775544201940,-1000.0,9.809e-05,2]
[419953915,1775544201970,-1000.0,9.809e-05,2]
[419953916,1775544202076,-1000.0,9.809e-05,2]
[419953917,1775544202162,-1000.0,9.809e-05,2]
[419953918,1775544202197,-1000.0,9.809e-05,2]
[419953919,1775544202257,-1000.0,9.809e-05,2]
[419953920,1775544202323,-1000.0,9.809e-05,2]
[419953921,1775544203704,-1000.0,9.809e-05,2]
[419953922,1775544204088,-1000.0,9.809e-05,2]
[419953923,1775544204502,-1000.0,9.809e-05,2]
[419953924,1775544204926,-1000.0,9.809e-05,2]
[419953925,1775544205239,-1000.0,9.809e-05,2]
[419953926,1775544205663,-1000.0,9.809e-05,2]
[419953927,1775544207479,-1000.0,9.809e-05,2]
[419953928,1775544209193,-1000.0,9.809e-05,2]
[419953929,1775544209636,-1000.0,9.809e-05,2]
[419953930,1775544210161,-1000.0,9.809e-05,2]
[419953931,1775544210594,-1000.0,9.809e-05,2]
[419953932,1775544211083,-1000.0,9.809e-05,2]
[419953933,1775544211372,-1000.0,9.809e-05,2]
[419953934,1775544211848,-1000.0,9.809e-05,2]
[419953935,1775544213317,170.23,7.823e-05,2]
[419953936,1775544247919,-243.0,9.708e-05,2]
[419953937,1775544247942,-300.0,9.708e-05,2]
[419953938,1775544247965,-457.0,9.709e-05,2]
[419953939,1775544249399,-1000.0,9.709e-05,2]
[419953940,1775544252863,-906.0,9.709e-05,2]
[419953941,1775544272784,-1000.0,9.709e-05,2]
[419953942,1775544273770,-1000.0,9.709e-05,2]
[419953943,1775544274928,-1000.0,9.709e-05,2]
[419953944,1775544275920,-1000.0,9.709e-05,2]
[419953945,1775544276925,-1000.0,9.709e-05,2]
[419953946,1775544277996,-1000.0,9.709e-05,2]
[419953947,1775544278983,-1000.0,9.709e-05,2]
[419953948,1775544279926,-1000.0,9.709e-05,2]
[419953949,1775544280909,-1000.0,9.709e-05,2]
[419953950,1775544283082,-1000.0,9.709e-05,2]
[419953951,1775544283985,-1000.0,9.709e-05,2]
[419953952,1775544318787,-770.0,9.708e-05,2]
[419953953,1775544343197,-500.0,9.415e-05,2]
[419953954,1775544343224,-430.0,9.708e-05,2]
[419953955,1775544343250,-70.0,9.708e-05,2]
[419953956,1775544344277,-230.0,9.708e-05,2]
[419953957,1775544344302,-300.0,9.708e-05,2]
[419953958,1775544344325,-300.0,9.708e-05,2]
[419953959,1775544344350,-170.0,9.709e-05,2]
[419953960,1775544345688,-80.0,9.709e-05,2]
[419953961,1775544345714,-920.0,9.709e-05,2]
[419953962,1775544346677,-1000.0,9.709e-05,2]
[419953963,1775544347592,-1000.0,9.709e-05,2]
[419953964,1775544348516,-1000.0,9.709e-05,2]
[419953965,1775544349391,-1000.0,9.709e-05,2]
[419953966,1775544350337,-1000.0,9.709e-05,2]
[419953967,1775544351263,-1000.0,9.709e-05,2]
[419953968,1775544353493,-1000.0,9.709e-05,2]
[419953969,1775544354424,-1000.0,9.709e-05,2]
[419953970,1775544355565,-1000.0,9.709e-05,2]
[419953971,1775544388560,-290.0,9.709e-05,2]
[419953972,1775544388586,-278.0,9.709e-05,2]
[419953973,1775544450112,-641.735107,9.66e-05,2]
[419953974,1775544450137,-289.0,9.66e-05,2]
[419953975,1775544450161,-69.264893,9.708e-05,2]
[419953976,1775544451761,-230.735107,9.708e-05,2]
[419953977,1775544451786,-769.264893,9.709e-05,2]
[419953978,1775544453071,-1000.0,9.709e-05,2]
[419953979,1775544453201,-1000.0,9.709e-05,2]
[419953980,1775544453795,-1000.0,9.709e-05,2]
[419953981,1775544453844,-1000.0,9.709e-05,2]
[419953982,1775544455008,-1000.0,9.709e-05,2]
[419953983,1775544455775,-1000.0,9.709e-05,2]
[419953984,1775544455810,-1000.0,9.709e-05,2]
[419953985,1775544455873,-1000.0,9.709e-05,2]
[419953986,1775544455931,-1000.0,9.709e-05,2]
[419953987,1775544457654,-1000.0,9.709e-05,2]
[419953988,1775544457721,-1000.0,9.709e-05,2]
[419953989,1775544457805,-1000.0,9.709e-05,2]
[419953990,1775544457888,-1000.0,9.709e-05,2]
[419953991,1775544457988,-1000.0,9.709e-05,2]
[419953992,1775544458072,-1000.0,9.709e-05,2]
[419953993,1775544458341,-1000.0,9.709e-05,2]
[419953994,1775544458792,-1000.0,9.709e-05,2]
[419953995,1775544459251,-1000.0,9.709e-05,2]
[419953996,1775544459743,-482.202107,9.709e-05,2]
[419953997,1775544459767,-274.53404693,9.723e-05,2]
[419953998,1775544459789,-243.26384607,9.723e-05,2]
[419953999,1775544460314,-1000.0,9.723e-05,2]
[419954000,1775544460693,-756.73615393,9.723e-05,2]
[419954001,1775544460719,-243.26384607,9.792e-05,2]
[419954002,1775544461010,-1000.0,9.792e-05,2]
[419954003,1775544461405,-1000.0,9.792e-05,2]
[419954004,1775544461701,-1000.0,9.792e-05,2]
[419954005,1775544462076,-1000.0,9.792e-05,2]
[419954006,1775544462444,-1000.0,9.792e-05,2]
[419954007,1775544462779,-1000.0,9.792e-05,2]
[419954008,1775544463150,-1000.0,9.792e-05,2]
[419954009,1775544463429,-1000.0,9.792e-05,2]
[419954010,1775544463845,-1000.0,9.792e-05,2]
[419954011,1775544464131,-1000.0,9.792e-05,2]
[419954012,1775544464515,-1000.0,9.792e-05,2]
[419954013,1775544464830,-1000.0,9.792e-05,2]
[419954014,1775544465550,-1000.0,9.792e-05,2]
[419954015,1775544465640,-1000.0,9.792e-05,2]
[419954016,1775544466023,-444.56691913,9.792e-05,2]
[419954017,1775544466056,-150.0,9.8e-05,2]
[419954018,1775544466088,-405.43308087,9.807e-05,2]
[419954019,1775544466376,-1000.0,9.807e-05,2]
[419954020,1775544466711,-1000.0,9.807e-05,2]
[419954021,1775544467169,-946.89641953,9.807e-05,2]
[419954022,1775544467201,-53.10358047,9.808e-05,2]
[419954023,1775544470118,-96.89641953,9.808e-05,2]
[419954024,1775544470140,-288.32443024,9.809e-05,2]
[419954025,1775544470167,-614.77915023,9.809e-05,2]
[419954026,1775544470261,-1000.0,9.809e-05,2]
[419954027,1775544470301,-1000.0,9.809e-05,2]
[419954028,1775544470417,-1000.0,9.809e-05,2]
[419954029,1775544470508,-1000.0,9.809e-05,2]
[419954030,1775544470586,-1000.0,9.809e-05,2]
[419954031,1775544470641,-1000.0,9.809e-05,2]
[419954032,1775544470790,-1000.0,9.809e-05,2]
[419954033,1775544470843,-1000.0,9.809e-05,2]
[419954034,1775544472015,-1000.0,9.809e-05,2]
[419954035,1775544472371,-1000.0,9.809e-05,2]
[419954036,1775544472871,-1000.0,9.809e-05,2]
[419954037,1775544473328,-1000.0,9.809e-05,2]
[419954038,1775544473815,-1000.0,9.809e-05,2]
[419954039,1775544545867,-1600.0,9.61e-05,2]
[419954040,1775544545890,-300.0,9.808e-05,2]
[419954041,1775544545913,-1200.0,9.808e-05,2]
[419954042,1775544545936,-300.0,9.808e-05,2]
[419954043,1775544545965,-6510.0,9.809e-05,2]
[419954044,1775544585395,-1000.0,9.709e-05,2]
[419954045,1775544590163,-1000.0,9.709e-05,2]
[419954046,1775544602573,-1000.0,9.642e-05,2]
[419954048,1775544608774,-200.0,9.642e-05,2]
[419954049,1775544608799,-800.0,9.643e-05,2]
[419954050,1775544612595,-1000.0,9.643e-05,2]
[419954051,1775544614906,-1000.0,9.643e-05,2]
[419954052,1775544623456,-1000.0,9.643e-05,2]
[419954053,1775544625451,-1000.0,9.643e-05,2]
[419954054,1775544627434,-1000.0,9.643e-05,2]
[419954055,1775544629616,-1000.0,9.643e-05,2]
[419954062,1775544633057,-2311.36,9.643e-05,2]
[419954063,1775544633066,-183.02269796,9.709e-05,2]
[419954064,1775544633077,-729.38,9.709e-05,2]
[419954065,1775544633088,-183.02269795,9.965e-05,2]
[419954066,1775544633098,-300.0,9.988e-05,2]
[419954067,1775544633109,-300.0,9.988e-05,2]
[419954068,1775544633120,-208.94623812,9.989e-05,2]
[419954069,1775544633154,-8.05376188,9.989e-05,2]
[419954070,1775544633165,-217.0,9.989e-05,2]
[419954071,1775544633175,-217.0,9.989e-05,2]
[419954072,1775544633186,-217.0,9.989e-05,2]
[419954073,1775544633195,-217.0,9.989e-05,2]
[419954074,1775544633205,-217.0,9.989e-05,2]
[419954075,1775544633215,-217.0,9.989e-05,2]
[419954076,1775544633226,-217.0,9.989e-05,2]
[419954077,1775544633237,-217.0,9.989e-05,2]
[419954078,1775544633247,-4056.0,0.0001,2]
[419954079,1775544633256,-500.0,0.0001,2]
[419954080,1775544633266,-500.0,0.0001,2]
[419954081,1775544633276,-500.0,0.0001,2]
[419954082,1775544633285,-500.0,0.0001,2]
[419954083,1775544633295,-500.0,0.0001,2]
[419954084,1775544633305,-500.0,0.0001,2]
[419954085,1775544633315,-500.0,0.0001,2]
[419954086,1775544633324,-500.0,0.0001,2]
[419954087,1775544633334,-278.38995124,0.0001,2]
[419954099,1775544634927,-221.61004876,0.0001,2]
[419954100,1775544634936,-185.38995124,0.0001,2]
[419954101,1775544634948,-295.99999997,0.0001,2]
[419954102,1775544634959,-18.61004879,0.0001,2]
[419954103,1775544634967,-431.19503938,0.0001,2]
[419954104,1775544635050,-68.80496062,0.0001,2]
[419954105,1775544635060,-500.0,0.0001,2]
[419954106,1775544635069,-204.0271012,0.0001,2]
[419954107,1775544635127,-295.9728988,0.0001,2]
[419954108,1775544635136,-500.0,0.0001,2]
[419954109,1775544635146,-500.0,0.0001,2]
[419954110,1775544635154,-1199.20597015,0.0001,2]
[419954111,1775544635164,-151.0,0.0001,2]
[419954112,1775544635174,-260.0,0.00010048,2]
[419954113,1775544635184,-5533.0,0.000101,5]
[419954114,1775544635193,-5533.0,0.000101,3]
[419954115,1775544635202,-738.96,0.0001011,2]
[419954116,1775544635211,-316.41909116,0.00010116,2]
[419954117,1775544635221,-183.02269795,0.00010121,2]
[419954118,1775544635231,-150.0,0.000102,2]
[419954119,1775544635241,-156.29,0.00010207,2]
[419954120,1775544635251,-500.0,0.00010207,2]
[419954121,1775544635261,-578.20924308,0.00010221,2]
[419954122,1775544635271,-500.0,0.00010221,2]
[419954123,1775544635281,-1073.72444779,0.00010221,2]
[419954125,1775544638123,-713.22864957,0.00010221,2]
[419954128,1775544640065,-618.54509999,0.00010221,2]
[419954129,1775544641894,-2742.37269276,0.00010221,2]
[419954130,1775544641921,-396.70564202,0.00010221,2]
[419954131,1775544641938,-875.50000001,0.00010221,2]
[419954132,1775544642053,-381.19373784,0.00010221,2]
[419954142,1775544642772,-989.60394079,0.00010221,2]
[419954143,1775544643085,-469.25651162,0.00010221,2]
[419954144,1775544643100,-1235.18214925,0.00010221,2]
[419954145,1775544643114,-623.58710448,0.00010221,2]
[419954146,1775544643129,-500.0,0.00010221,2]
[419954147,1775544643143,-200.0,0.00010221,2]
[419954148,1775544643158,-181.08010149,0.00010221,2]
[419954149,1775544643186,-500.0,0.00010221,2]
[419954150,1775544643207,-500.0,0.00010221,2]
[419954151,1775544643228,-500.0,0.00010221,2]
[419954152,1775544643245,-500.0,0.00010221,2]
[419954153,1775544643262,-500.0,0.00010221,2]
[419954154,1775544643279,-500.0,0.00010221,2]
[419954155,1775544643297,-500.0,0.00010221,2]
[419954156,1775544643314,-500.0,0.00010221,2]
[419954157,1775544643332,-500.0,0.00010221,2]
[419954158,1775544643348,-418.43837212,0.00010221,2]
[419954159,1775544643365,-181.08010149,0.00010221,2]
[419954160,1775544643381,-151.0,0.00010221,2]
[419954161,1775544643397,-303.98027082,0.00010221,2]